fUSD/lending_fUSD_20241209
["ID","MTS","AMOUNT","RATE_DAILY","PERIOD"]
[344727814,1733745074532,-2000.0,0.00024932,120]
[344727815,1733745074542,-2000.0,0.00024932,120]
[344727816,1733745074552,-2000.0,0.00024932,120]
[344727817,1733745074564,-2000.0,0.00024932,120]
[344727818,1733745074574,-2000.0,0.00024932,120]
[344727819,1733745074584,-2000.0,0.00024932,120]
[344727820,1733745074594,-2000.0,0.00024932,120]
[344727821,1733745074603,-2000.0,0.00024932,120]
[344727822,1733745074613,-20810.27435569,0.0002496,10]
[344727823,1733745074622,-500.0,0.00024981,120]
[344727824,1733745074632,-150.0,0.00024996,120]
[344727825,1733745074642,-50000.0,0.00025,2]
[344727826,1733745074652,-254.17843234,0.00025,2]
[344727827,1733745074662,-3619.51979539,0.00025,2]
[344727828,1733745074672,-300.0,0.00025,20]
[344727829,1733745074682,-120551.73882337,0.00025,2]
[344727830,1733745074692,-1023.03933362,0.00025,60]
[344727831,1733745074702,-2372.0226179,0.00025,30]
[344727832,1733745074712,-102274.60850944,0.00025,2]
[344727833,1733745074722,-3349.96091864,0.00025,60]
[344727834,1733745074732,-1589.89652293,0.00025,2]
[344727835,1733745074743,-1487.2243584,0.00025,60]
[344727836,1733745074754,-2906.36896525,0.00025,2]
[344727837,1733745074764,-200.00538933,0.00025,2]
[344727838,1733745074775,-540.0,0.00025,2]
[344727839,1733745074785,-304.0,0.00025,30]
[344727840,1733745074796,-1000.0,0.00025,60]
[344727841,1733745074807,-5000.0,0.00025,7]
[344727842,1733745074817,-46945.92475711,0.00025,10]
[344727843,1733745074827,-2200.0,0.00025,30]
[344727844,1733745074837,-10970.20629602,0.00025,2]
[344727845,1733745074850,-10000.0,0.00025,2]
[344727846,1733745074860,-3600.0,0.00025,26]
[344727847,1733745074869,-500.0,0.00025,15]
[344727848,1733745074879,-10000.0,0.00025,16]
[344727849,1733745074890,-13101.61,0.00025,3]
[344727850,1733745074901,-4912.72003394,0.00025,30]
[344727851,1733745074911,-1133.0,0.00025,60]
[344727852,1733745074921,-150.0,0.00025,2]
[344727853,1733745074931,-10016.45855632,0.00025,2]
[344727854,1733745074940,-7805.50347598,0.00025,7]
[344727855,1733745074950,-11295.7004328,0.00025,7]
[344727856,1733745074961,-523.49184114,0.00025,30]
[344727857,1733745074971,-150.0,0.00025,2]
[344727858,1733745074981,-21515.90443588,0.00025,10]
[344727859,1733745074990,-3250.0,0.00025,120]
[344727860,1733745074999,-3788.363873,0.00025,60]
[344727861,1733745075009,-11700.0,0.00025,2]
[344727862,1733745075019,-157.55966765,0.00025,10]
[344727863,1733745075029,-750.0,0.00025,2]
[344727864,1733745075038,-2000.0,0.00025,2]
[344727865,1733745075049,-605.506964,0.00025,2]
[344727866,1733745075061,-3640.98,0.00025,120]
[344727867,1733745075071,-1013.42,0.00025,2]
[344727868,1733745075080,-1013.42,0.00025,2]
[344727869,1733745075090,-3672.0,0.00025,120]
[344727870,1733745075099,-174.929,0.00025,2]
[344727871,1733745075109,-150.0,0.00025002,120]
[344727872,1733745075118,-2000.0,0.00025014,120]
[344727873,1733745075128,-2000.0,0.00025014,120]
[344727874,1733745075137,-2000.0,0.00025014,120]
[344727875,1733745075146,-2000.0,0.00025014,120]
[344727876,1733745075156,-2000.0,0.00025014,120]
[344727877,1733745075166,-2000.0,0.00025014,120]
[344727878,1733745075175,-2000.0,0.00025014,120]
[344727879,1733745075185,-2000.0,0.00025014,120]
[344727880,1733745075195,-2000.0,0.00025014,120]
[344727881,1733745075204,-2000.0,0.00025014,120]
[344727882,1733745075214,-150.0,0.00025043,120]
[344727883,1733745075224,-3229.26720984,0.000251,2]
[344727884,1733745075233,-500.0,0.00025135,120]
[344727885,1733745075243,-500.0,0.00025165,2]
[344727886,1733745075253,-1939.0,0.00025165,2]
[344727887,1733745075263,-500.0,0.00025165,2]
[344727888,1733745075273,-947.0,0.000252,13]
[344727889,1733745075282,-200.0,0.00025201,120]
[344727890,1733745075292,-30000.0,0.0002525,30]
[344727891,1733745075302,-2000.0,0.00025252,120]
[344727892,1733745075313,-280.0,0.000253,10]
[344727893,1733745075323,-1000.0,0.000254,120]
[344727894,1733745075332,-2886.9,0.00025407,7]
[344727895,1733745075341,-2886.9,0.00025407,7]
[344727896,1733745075351,-2886.9,0.00025407,7]
[344727897,1733745075360,-2886.9,0.00025407,7]
[344727898,1733745075370,-500.0,0.00025439,2]
[344727899,1733745075380,-1939.0,0.00025439,2]
[344727900,1733745075389,-663.13844922,0.00025439,2]
[344727901,1733745075399,-30000.0,0.000255,30]
[344727902,1733745075409,-1455.08930832,0.000255,60]
[344727903,1733745075419,-153.49,0.00025548,2]
[344727904,1733745075429,-25618.49152977,0.00025648,2]
[344727905,1733745075438,-2886.9,0.00025681,7]
[344727906,1733745075448,-2886.9,0.00025681,7]
[344727907,1733745075458,-151.0,0.00025688,2]
[344727908,1733745075468,-600.0,0.000257,120]
[344727909,1733745075477,-947.0,0.000257,14]
[344727910,1733745075488,-500.0,0.00025713,2]
[344727911,1733745075498,-1939.0,0.00025713,2]
[344727912,1733745075508,-30000.0,0.0002575,30]
[344727913,1733745075518,-2000.0,0.00025799,120]
[344727914,1733745075528,-900.0,0.000258,120]
[344727915,1733745075538,-150.0,0.00025883,120]
[344727916,1733745075547,-2886.9,0.00025954,7]
[344727917,1733745075559,-2886.9,0.00025954,7]
[344727918,1733745075569,-500.0,0.00025969,120]
[344727919,1733745075579,-500.0,0.00025987,2]
[344727920,1733745075589,-1939.0,0.00025987,2]
[344727921,1733745075599,-572.81229328,0.0002599,2]
[344727922,1733745075608,-50000.0,0.00026,2]
[344727923,1733745075618,-4316.62962307,0.00026,2]
[344727924,1733745075627,-4433.65,0.00026,2]
[344727925,1733745075636,-800.0,0.00026,120]
[344727926,1733745075646,-50000.0,0.00026,120]
[344727927,1733745075655,-3600.0,0.00026,27]
[344727928,1733745075664,-350.0,0.00026,26]
[344727929,1733745075673,-10000.0,0.00026,16]
[344727930,1733745075683,-13535.30068986,0.00026,3]
[344727931,1733745075692,-14116.3461,0.00026,2]
[344727932,1733745075702,-1012.64970757,0.00026,20]
[344727933,1733745075711,-30000.0,0.00026,30]
[344727934,1733745075720,-30000.0,0.00026,14]
[344727935,1733745075729,-200.0,0.00026,2]
[344727936,1733745075738,-35967.4148344,0.00026,4]
[344727937,1733745075747,-997.20964168,0.00026,2]
[344727938,1733745075756,-500.0,0.00026,2]
[344727939,1733745075765,-500.47137461,0.00026,2]
[344727940,1733745075775,-297.19012242,0.00026,2]
[344727941,1733745075784,-500.0,0.00026,2]
[344727942,1733745075793,-475.24133958,0.00026,2]
[344727943,1733745075802,-546.77729366,0.00026,2]
[344727944,1733745075813,-500.0,0.00026,2]
[344727945,1733745075823,-500.0,0.00026,2]
[344727946,1733745075832,-500.0,0.00026,2]
[344727947,1733745075842,-500.0,0.00026,2]
[344727948,1733745075855,-500.0,0.00026,2]
[344727949,1733745075864,-500.0,0.00026,2]
[344727950,1733745075874,-500.0,0.00026,2]
[344727951,1733745075883,-500.0,0.00026,2]
[344727952,1733745075894,-500.0,0.00026,2]
[344727953,1733745075904,-500.0,0.00026,2]
[344727954,1733745076066,-500.0,0.00026,2]
[344727955,1733745076076,-500.0,0.00026,2]
[344727956,1733745076085,-953.82500204,0.00026,2]
[344727957,1733745076095,-500.0,0.00026,2]
[344727958,1733745076104,-500.0,0.00026,2]
[344727959,1733745076113,-500.0,0.00026,2]
[344727960,1733745076122,-500.0,0.00026,2]
[344727961,1733745076131,-500.0,0.00026,2]
[344727962,1733745076141,-500.0,0.00026,2]
[344727963,1733745076150,-500.0,0.00026,2]
[344727964,1733745076160,-706.5710406,0.00026,2]
[344727965,1733745076168,-500.0,0.00026,2]
[344727966,1733745076177,-500.0,0.00026,2]
[344727967,1733745076187,-500.0,0.00026,2]
[344727968,1733745076196,-700.0,0.00026,2]
[344727969,1733745076205,-500.0,0.00026,2]
[344727970,1733745076214,-500.0,0.00026,2]
[344727971,1733745076223,-500.0,0.00026,2]
[344727972,1733745076232,-700.0,0.00026,2]
[344727973,1733745076242,-500.0,0.00026,2]
[344727974,1733745076251,-700.0,0.00026,2]
[344727975,1733745076260,-500.0,0.00026,2]
[344727976,1733745076270,-700.0,0.00026,2]
[344727977,1733745076279,-156.73740761,0.00026,2]
[344727978,1733745076288,-500.0,0.00026,2]
[344727979,1733745076298,-700.0,0.00026,2]
[344727980,1733745076310,-938.19696458,0.00026,2]
[344727981,1733745076320,-473.21871603,0.00026,2]
[344727982,1733745076329,-700.0,0.00026,2]
[344727983,1733745076339,-700.0,0.00026,2]
[344727984,1733745076347,-800.0,0.00026,2]
[344727985,1733745076357,-700.0,0.00026,2]
[344727986,1733745076366,-2400.0,0.00026,2]
[344727987,1733745076375,-187.20805384,0.00026,2]
[344727988,1733745076384,-800.0,0.00026,2]
[344727989,1733745076394,-700.0,0.00026,2]
[344727990,1733745076403,-2400.0,0.00026,2]
[344727991,1733745076413,-800.0,0.00026,2]
[344727992,1733745076422,-700.0,0.00026,2]
[344727993,1733745076432,-2400.0,0.00026,2]
[344727994,1733745076441,-800.0,0.00026,2]
[344727995,1733745076451,-700.0,0.00026,2]
[344727996,1733745076460,-2400.0,0.00026,2]
[344727997,1733745076470,-800.0,0.00026,2]
[344727998,1733745076480,-700.0,0.00026,2]
[344727999,1733745076490,-500.0,0.00026,2]
[344728000,1733745076499,-500.0,0.00026,2]
[344728001,1733745076509,-800.0,0.00026,2]
[344728002,1733745076519,-700.0,0.00026,2]
[344728003,1733745076528,-2400.0,0.00026,2]
[344728004,1733745076538,-500.0,0.00026,2]
[344728005,1733745076548,-800.0,0.00026,2]
[344728006,1733745076559,-700.0,0.00026,2]
[344728007,1733745076569,-2400.0,0.00026,2]
[344728008,1733745076579,-500.0,0.00026,2]
[344728009,1733745076588,-800.0,0.00026,2]
[344728010,1733745076598,-500.0,0.00026,2]
[344728011,1733745076608,-500.0,0.00026,2]
[344728012,1733745076617,-2400.0,0.00026,2]
[344728013,1733745076626,-800.0,0.00026,2]
[344728014,1733745076635,-500.0,0.00026,2]
[344728015,1733745076645,-2400.0,0.00026,2]
[344728016,1733745076654,-800.0,0.00026,2]
[344728017,1733745076663,-500.0,0.00026,2]
[344728018,1733745076673,-2400.0,0.00026,2]
[344728019,1733745076682,-800.0,0.00026,2]
[344728020,1733745076692,-500.0,0.00026,2]
[344728021,1733745076702,-2400.0,0.00026,2]
[344728022,1733745076711,-800.0,0.00026,2]
[344728023,1733745076721,-500.0,0.00026,2]
[344728024,1733745076730,-2400.0,0.00026,2]
[344728025,1733745076739,-800.0,0.00026,2]
[344728026,1733745076749,-500.0,0.00026,2]
[344728027,1733745076759,-2400.0,0.00026,2]
[344728028,1733745076769,-800.0,0.00026,2]
[344728029,1733745076778,-500.0,0.00026,2]
[344728030,1733745076787,-2400.0,0.00026,2]
[344728031,1733745076796,-800.0,0.00026,2]
[344728032,1733745076807,-500.0,0.00026,2]
[344728033,1733745076817,-2400.0,0.00026,2]
[344728034,1733745076826,-928.80608694,0.00026,2]
[344728035,1733745076835,-500.0,0.00026,2]
[344728036,1733745076847,-1000.0,0.00026,2]
[344728037,1733745076857,-1000.0,0.00026,2]
[344728038,1733745076866,-273.81232503,0.00026,2]
[344728039,1733745076876,-500.0,0.00026,2]
[344728040,1733745076885,-500.0,0.00026,2]
[344728041,1733745076896,-500.0,0.00026,2]
[344728042,1733745076906,-1000.0,0.00026,2]
[344728043,1733745076915,-500.0,0.00026,2]
[344728044,1733745076925,-1000.0,0.00026,2]
[344728045,1733745076934,-500.0,0.00026,2]
[344728046,1733745076943,-1000.0,0.00026,2]
[344728047,1733745076952,-1000.0,0.00026,2]
[344728048,1733745076962,-1000.0,0.00026,2]
[344728049,1733745076972,-1000.0,0.00026,2]
[344728050,1733745076982,-1000.0,0.00026,2]
[344728051,1733745076992,-1000.0,0.00026,2]
[344728052,1733745077001,-1000.0,0.00026,2]
[344728053,1733745077011,-1000.0,0.00026,2]
[344728054,1733745077020,-1000.0,0.00026,2]
[344728055,1733745077030,-207.86137997,0.00026,2]
[344728056,1733745077040,-159.97143866,0.00026,2]
[344728057,1733745077049,-500.0,0.00026,2]
[344728058,1733745077063,-500.0,0.00026,2]
[344728059,1733745077074,-985.30517558,0.00026,2]
[344728060,1733745077084,-969.01551873,0.00026,2]
[344728061,1733745077094,-1000.0,0.00026,2]
[344728062,1733745077104,-159.06896745,0.00026,2]
[344728063,1733745077114,-500.0,0.00026,2]
[344728064,1733745077124,-500.0,0.00026,2]
[344728065,1733745077134,-700.0,0.00026,2]
[344728066,1733745077144,-810.0,0.00026,2]
[344728067,1733745077153,-162.8325884,0.00026,2]
[344728068,1733745077163,-500.0,0.00026,2]
[344728069,1733745077172,-1000.0,0.00026,2]
[344728070,1733745077182,-500.0,0.00026,2]
[344728071,1733745077191,-700.0,0.00026,2]
[344728072,1733745077200,-700.0,0.00026,2]
[344728073,1733745077210,-700.0,0.00026,2]
[344728074,1733745077219,-159.29646985,0.00026,2]
[344728075,1733745077228,-700.0,0.00026,2]
[344728076,1733745077238,-700.0,0.00026,2]
[344728077,1733745077248,-475.24133958,0.00026,2]
[344728078,1733745077257,-500.0,0.00026,2]
[344728079,1733745077267,-500.7,0.00026,2]
[344728080,1733745077276,-687.34753946,0.00026,2]
[344728081,1733745077285,-700.0,0.00026,2]
[344728082,1733745077295,-500.0,0.00026,2]
[344728083,1733745077307,-700.0,0.00026,2]
[344728084,1733745077319,-700.0,0.00026,2]
[344728085,1733745077329,-700.0,0.00026,2]
[344728086,1733745077339,-700.0,0.00026,2]
[344728087,1733745077348,-500.0,0.00026,2]
[344728088,1733745077357,-700.0,0.00026,2]
[344728089,1733745077367,-700.0,0.00026,2]
[344728090,1733745077376,-700.0,0.00026,2]
[344728091,1733745077385,-473.21871603,0.00026,2]
[344728092,1733745077394,-500.0,0.00026,2]
[344728093,1733745077403,-500.7,0.00026,2]
[344728094,1733745077412,-475.24133958,0.00026,2]
[344728095,1733745077422,-473.21871603,0.00026,2]
[344728096,1733745077431,-473.21871603,0.00026,2]
[344728097,1733745077440,-475.24133958,0.00026,2]
[344728098,1733745077449,-328.87317529,0.00026,2]
[344728099,1733745077458,-303.30050601,0.00026,2]
[344728100,1733745077468,-500.0,0.00026,2]
[344728101,1733745077477,-500.0,0.00026,2]
[344728102,1733745077486,-500.0,0.00026,2]
[344728103,1733745077495,-500.0,0.00026,2]
[344728104,1733745077504,-500.0,0.00026,2]
[344728105,1733745077512,-604.0,0.00026027,120]
[344728106,1733745077522,-599.0,0.00026027,120]
[344728107,1733745077531,-519.557933,0.0002604,2]
[344728108,1733745077541,-500.0,0.00026042,120]
[344728109,1733745077550,-947.0,0.000262,14]
[344728110,1733745077562,-2886.9,0.00026227,7]
[344728111,1733745077571,-2886.9,0.00026227,7]
[344728112,1733745077580,-500.0,0.00026261,2]
[344728113,1733745077590,-1939.0,0.00026261,2]
[344728114,1733745077599,-2000.0,0.00026262,120]
[344728115,1733745077608,-502.392098,0.00026299,120]
[344728116,1733745077618,-200.0,0.00026335,120]
[344728117,1733745077627,-26209.82976239,0.000264,2]
[344728118,1733745077636,-1000.0,0.000264,120]
[344728119,1733745077648,-2000.0,0.00026414,7]
[344728120,1733745077657,-3500.0,0.00026414,7]
[344728121,1733745077666,-500.0,0.00026414,7]
[344728122,1733745077676,-406.01,0.00026484,2]
[344728123,1733745077685,-30000.0,0.000265,30]
[344728124,1733745077695,-3000.0,0.000265,2]
[344728125,1733745077704,-6210.87,0.000265,31]
[344728126,1733745077713,-6210.87,0.000265,31]
[344728127,1733745077723,-6210.87,0.000265,31]
[344728128,1733745077732,-6210.87,0.000265,31]
[344728129,1733745077742,-6210.87,0.000265,31]
[344728130,1733745077752,-6210.87,0.000265,31]
[344728131,1733745077761,-6210.87,0.000265,31]
[344728132,1733745077771,-6210.87,0.000265,31]
[344728133,1733745077780,-6210.87,0.000265,31]
[344728134,1733745077789,-6210.87,0.000265,31]
[344728135,1733745077798,-6210.87,0.000265,31]
[344728136,1733745077810,-6210.87,0.000265,31]
[344728137,1733745077819,-6210.87,0.000265,31]
[344728138,1733745077828,-6210.87,0.000265,31]
[344728139,1733745077838,-6210.87,0.000265,31]
[344728140,1733745077851,-6210.87,0.000265,31]
[344728141,1733745077860,-6210.87,0.000265,31]
[344728142,1733745077869,-6210.87,0.000265,31]
[344728143,1733745077878,-6210.87,0.000265,31]
[344728144,1733745077890,-6210.87,0.000265,31]
[344728145,1733745077899,-6210.87,0.000265,31]
[344728146,1733745077908,-6210.87,0.000265,31]
[344728147,1733745077918,-6210.87,0.000265,31]
[344728148,1733745077929,-6210.87,0.000265,31]
[344728149,1733745077939,-2886.9,0.000265,7]
[344728150,1733745077949,-2886.9,0.000265,7]
[344728151,1733745077958,-500.0,0.00026535,2]
[344728152,1733745077969,-1939.0,0.00026535,2]
[344728153,1733745077978,-31510.47445743,0.000266,2]
[344728154,1733745077987,-500.24,0.00026667,10]
[344728155,1733745077996,-947.0,0.000267,15]
[344728156,1733745078006,-1533.518195,0.00026745,2]
[344728157,1733745078016,-1013.42,0.00026745,2]
[344728158,1733745078025,-2886.9,0.00026774,7]
[344728159,1733745078035,-2886.9,0.00026774,7]
[344728160,1733745078045,-2000.0,0.00026799,120]
[344728161,1733745078054,-500.0,0.00026803,120]
[344728162,1733745078066,-974.00059625,0.00026809,2]
[344728163,1733745078076,-1939.0,0.00026809,2]
[344728164,1733745078085,-20365.20698721,0.00026874,30]
[344728165,1733745078095,-150.0,0.00026961,120]
[344728166,1733745078105,-1090.04,0.00026964,2]
[344728167,1733745078115,-1125.55,0.00026994,30]
[344728168,1733745078125,-50000.0,0.00027,3]
[344728169,1733745078135,-250.0,0.00027,2]
[344728170,1733745078144,-381.03288086,0.00027,2]
[344728171,1733745078153,-678.31494512,0.00027,120]
[344728172,1733745078163,-2000.0,0.00027,120]
[344728173,1733745078172,-987.97825722,0.00027,2]
[344728174,1733745078182,-689.03585563,0.00027,120]
[344728175,1733745078192,-1000.0,0.00027,120]
[344728176,1733745078202,-33000.0,0.00027,120]
[344728177,1733745078212,-3600.0,0.00027,28]
[344728178,1733745078222,-4796.62297302,0.00027,120]
[344728179,1733745078232,-5421.09,0.00027,120]
[344728180,1733745078242,-5243.08,0.00027,120]
[344728181,1733745078252,-3812.52110913,0.00027,60]
[344728182,1733745078262,-10000.0,0.00027,7]
[344728183,1733745078271,-5556.0,0.00027,120]
[344728184,1733745078281,-4000.0,0.00027,2]
[344728185,1733745078291,-10000.0,0.00027,18]
[344728186,1733745078301,-30000.0,0.00027,30]
[344728187,1733745078313,-2228.99204229,0.00027,120]
[344728188,1733745078323,-6654.0559269,0.00027,60]
[344728189,1733745078333,-9506.8695466,0.00027,120]
[344728190,1733745078343,-54750.0,0.00027,10]
[344728191,1733745078353,-2000.0,0.00027,2]
[344728192,1733745078363,-800.0,0.00027,2]
[344728193,1733745078372,-2084.233253,0.0002701,2]
[344728194,1733745078382,-2886.9,0.00027047,7]
[344728195,1733745078391,-2886.9,0.00027047,7]
[344728196,1733745078401,-1939.0,0.00027083,2]
[344728197,1733745078411,-500.0,0.00027102,120]
[344728198,1733745078420,-3505.37,0.00027123,2]
[344728199,1733745078430,-947.0,0.000272,15]
[344728200,1733745078439,-2000.0,0.00027272,120]
[344728201,1733745078449,-2886.9,0.0002732,7]
[344728202,1733745078459,-2886.9,0.0002732,7]
[344728203,1733745078470,-1939.0,0.00027357,2]
[344728204,1733745078481,-11906.87653044,0.0002736,120]
[344728205,1733745078491,-531.82,0.00027397,2]
[344728206,1733745078501,-531.82,0.00027397,2]
[344728207,1733745078511,-531.82,0.00027397,2]
[344728208,1733745078521,-531.82,0.00027397,2]
[344728209,1733745078531,-531.82,0.00027397,2]
[344728210,1733745078540,-531.82,0.00027397,2]
[344728211,1733745078550,-531.82,0.00027397,2]
[344728212,1733745078561,-531.82,0.00027397,2]
[344728213,1733745078570,-531.82,0.00027397,2]
[344728214,1733745078581,-531.82,0.00027397,2]
[344728215,1733745078591,-531.82,0.00027397,2]
[344728216,1733745078601,-531.82,0.00027397,2]
[344728217,1733745078611,-531.82,0.00027397,2]
[344728218,1733745078620,-531.82,0.00027397,2]
[344728219,1733745078630,-531.82,0.00027397,2]
[344728220,1733745078639,-531.82,0.00027397,2]
[344728221,1733745078649,-531.82,0.00027397,2]
[344728222,1733745078658,-531.82,0.00027397,2]
[344728223,1733745078668,-531.82,0.00027397,2]
[344728224,1733745078677,-531.82,0.00027397,2]
[344728225,1733745078687,-531.82,0.00027397,2]
[344728226,1733745078697,-531.82,0.00027397,2]
[344728227,1733745078706,-531.82,0.00027397,2]
[344728228,1733745078716,-531.83368664,0.00027397,2]
[344728229,1733745078727,-2100.0,0.00027397,30]
[344728230,1733745078737,-922.99529274,0.00027397,30]
[344728231,1733745078746,-1790.49,0.00027397,2]
[344728232,1733745078756,-1790.49,0.00027397,2]
[344728233,1733745078766,-1790.49,0.00027397,2]
[344728234,1733745078776,-1790.49,0.00027397,2]
[344728235,1733745078785,-507.13,0.00027397,120]
[344728236,1733745078795,-1790.49,0.00027397,2]
[344728237,1733745078804,-507.13,0.00027397,120]
[344728238,1733745078815,-1790.49,0.00027397,2]
[344728239,1733745078825,-507.13,0.00027397,120]
[344728240,1733745078835,-1790.49,0.00027397,2]
[344728241,1733745078846,-507.13,0.00027397,120]
[344728242,1733745078857,-1790.49,0.00027397,2]
[344728243,1733745078867,-507.13,0.00027397,120]
[344728244,1733745078876,-1790.49,0.00027397,2]
[344728245,1733745078887,-507.13,0.00027397,120]
[344728246,1733745078896,-1790.49,0.00027397,2]
[344728247,1733745078906,-507.13,0.00027397,120]
[344728248,1733745078916,-507.13,0.00027397,120]
[344728249,1733745078927,-1790.49,0.00027397,2]
[344728250,1733745078938,-1790.49,0.00027397,2]
[344728251,1733745078947,-507.13,0.00027397,120]
[344728252,1733745078957,-507.13,0.00027397,120]
[344728253,1733745078968,-1790.49,0.00027397,2]
[344728254,1733745078977,-507.13,0.00027397,120]
[344728255,1733745078987,-1790.49,0.00027397,2]
[344728256,1733745078996,-507.13,0.00027397,120]
[344728257,1733745079006,-1790.49,0.00027397,2]
[344728258,1733745079015,-507.13,0.00027397,120]
[344728259,1733745079025,-1790.49,0.00027397,2]
[344728260,1733745079035,-507.13,0.00027397,120]
[344728261,1733745079044,-1790.49,0.00027397,2]
[344728262,1733745079054,-507.13,0.00027397,120]
[344728263,1733745079070,-1790.49,0.00027397,2]
[344728264,1733745079084,-507.13,0.00027397,120]
[344728265,1733745079094,-1790.49,0.00027397,2]
[344728266,1733745079260,-507.13,0.00027397,120]
[344728267,1733745079271,-1790.49,0.00027397,2]
[344728268,1733745079282,-507.13,0.00027397,120]
[344728269,1733745079293,-1790.49,0.00027397,2]
[344728270,1733745079303,-507.13,0.00027397,120]
[344728271,1733745079315,-1790.49,0.00027397,2]
[344728272,1733745079325,-507.13,0.00027397,120]
[344728273,1733745079335,-1790.49,0.00027397,2]
[344728274,1733745079344,-507.13,0.00027397,120]
[344728275,1733745079354,-1790.52548899,0.00027397,2]
[344728276,1733745079363,-507.13,0.00027397,120]
[344728277,1733745079372,-507.13,0.00027397,120]
[344728278,1733745079382,-507.19980471,0.00027397,120]
[344728279,1733745079393,-2000.0,0.00027397,15]
[344728280,1733745079403,-2000.0,0.00027397,15]
[344728281,1733745079413,-2000.0,0.00027397,15]
[344728282,1733745079424,-2000.0,0.00027397,15]
[344728283,1733745079434,-2000.0,0.00027397,15]
[344728284,1733745079444,-2000.0,0.00027397,15]
[344728285,1733745079455,-2000.0,0.00027397,15]
[344728286,1733745079465,-2000.0,0.00027397,15]
[344728287,1733745079475,-2000.0,0.00027397,15]
[344728288,1733745079485,-2000.0,0.00027397,15]
[344728289,1733745079495,-515.78,0.00027397,2]
[344728290,1733745079504,-515.78,0.00027397,2]
[344728291,1733745079514,-515.78,0.00027397,2]
[344728292,1733745079524,-515.78,0.00027397,2]
[344728293,1733745079533,-515.78,0.00027397,2]
[344728294,1733745079543,-515.78,0.00027397,2]
[344728295,1733745079552,-515.78,0.00027397,2]
[344728296,1733745079564,-515.78,0.00027397,2]
[344728297,1733745079573,-515.78,0.00027397,2]
[344728298,1733745079583,-515.78,0.00027397,2]
[344728299,1733745079592,-515.78,0.00027397,2]
[344728300,1733745079602,-515.78,0.00027397,2]
[344728301,1733745079611,-515.78,0.00027397,2]
[344728302,1733745079621,-515.78,0.00027397,2]
[344728303,1733745079630,-515.78,0.00027397,2]
[344728304,1733745079639,-515.78,0.00027397,2]
[344728305,1733745079649,-515.78,0.00027397,2]
[344728306,1733745079657,-515.78,0.00027397,2]
[344728307,1733745079666,-515.78,0.00027397,2]
[344728308,1733745079675,-515.78,0.00027397,2]
[344728309,1733745079683,-515.78,0.00027397,2]
[344728310,1733745079693,-515.78,0.00027397,2]
[344728311,1733745079702,-515.78,0.00027397,2]
[344728312,1733745079711,-515.99313302,0.00027397,2]
[344728313,1733745079721,-1549.94,0.00027397,2]